bitfinex/quotes_SOLUSD_20260302
["timestamp","ask_amount","ask_price","bid_price","bid_amount"]
[1772413223695,2.14207567,85.089,85.051,2.20336196]
[1772413224194,2.14207567,85.069,85.025,2.20336196]
[1772413224415,41.1290512,85.098,84.96,30.47433132]
[1772413224416,2.14207567,85.049,85.02,7.56858283]
[1772413224728,2.14207567,85.069,85.031,2.20336196]
[1772413224925,2.14207567,85.049,85.02,7.56858283]
[1772413225526,2.14207567,85.049,85.02,21.53382754]
[1772413225730,11.75806603,85.048,85.02,21.53382754]
[1772413225928,2.14207567,85.053,85.021,2.20336196]
[1772413226130,2.14207567,85.049,85.012,2.20336196]
[1772413226525,2.14207567,85.049,85.02,7.56858283]
[1772413226829,2.14207567,85.049,85.01,7.56858283]
[1772413227621,2.14207567,85.047,85.01,7.56858283]
[1772413228128,2.14207567,85.047,85.011,11.76318358]
[1772413228319,2.14207567,85.047,85.01,7.56858283]
[1772413228522,2.14207567,85.039,85.01,7.56858283]
[1772413228733,2.14207567,85.039,85.007,2.20336196]
[1772413229134,43.29530678,85.048,85.011,2.20336196]
[1772413229434,2.14207567,85.047,85.011,2.20336196]
[1772413229629,29.38717,85.072,85.021,2.20336196]
[1772413229831,13.89696276,85.071,85.04,7.56858283]
[1772413230143,2.14207567,85.07,85.04,7.56858283]
[1772413230313,11.75433441,85.075,85.041,2.20336196]
[1772413230710,2.14207567,85.069,85.03,7.56858283]
[1772413231226,11.75433441,85.075,85.05,7.56858283]
[1772413231744,7.56858283,85.09,85.05,7.56858283]
[1772413231745,2.14207567,85.09,85.051,11.75765129]
[1772413232036,2.14207567,85.09,85.06,7.56858283]
[1772413232414,2.14207567,85.089,85.05,7.56858283]
[1772413233418,2.14207567,85.089,85.06,7.56858283]
[1772413233741,11.74472412,85.145,85.084,0.28432314]
[1772413233912,0.1,85.15,85.13,7.56858283]
[1772413234117,2.40297291,85.15,85.13,7.56858283]
[1772413234321,14.04709204,85.149,85.12,7.56858283]
[1772413234622,2.30297291,85.149,85.13,7.56858283]
[1772413234937,0.1,85.15,85.13,7.56858283]
[1772413235319,11.74411913,85.149,85.12,7.56858283]
[1772413235933,2.30297291,85.148,85.12,7.56858283]
[1772413236522,2.30297291,85.148,85.11,7.56858283]
[1772413236832,2.30297291,85.129,85.1,7.56858283]
[1772413238739,11.74699981,85.129,85.088,29.38134637]
[1772413238941,2.30297291,85.128,85.1,7.56858283]
[1772413239943,11.74622084,85.134,85.11,7.56858283]
[1772413240241,2.30297291,85.129,85.1,7.56858283]
[1772413240923,2.30297291,85.127,85.077,11.75404102]
[1772413241137,41.11455689,85.128,85.08,7.56858283]
[1772413241138,2.30297291,85.119,85.08,7.56858283]
[1772413241437,2.30297291,85.138,85.11,7.56858283]
[1772413243542,2.30297291,85.138,85.111,11.74936259]
[1772413243925,2.30297291,85.138,85.11,7.56858283]
[1772413244125,2.30297291,85.136,85.11,7.56858283]
[1772413245039,2.30297291,85.136,85.1,7.56858283]
[1772413245245,2.30297291,85.136,85.11,7.56858283]
[1772413245543,11.74605039,85.135,85.11,7.56858283]
[1772413245727,2.30297291,85.134,85.1,7.56858283]
[1772413245921,2.30297291,85.134,85.11,7.56858283]
[1772413246647,2.30297291,85.143,85.11,7.56858283]
[1772413248447,2.30297291,85.139,85.11,7.57331383]
[1772413248630,2.30297291,85.139,85.111,11.74936259]
[1772413249428,11.74431412,85.148,85.12,7.57331383]
[1772413249846,2.30297291,85.147,85.12,7.57331383]
[1772413250028,0.1,85.15,85.121,0.02103415]
[1772413250228,0.1,85.15,85.13,7.57331383]
[1772413250848,2.30297291,85.149,85.121,11.74791677]
[1772413251539,2.30297291,85.149,85.13,7.57331383]
[1772413251750,2.30297291,85.149,85.121,11.74791677]
[1772413251943,2.30297291,85.149,85.13,7.57331383]
[1772413252444,0.1,85.15,85.12,7.57331383]
[1772413252445,2.40297291,85.15,85.12,7.57331383]
[1772413252649,0.1,85.15,85.13,7.57331383]
[1772413252950,0.1,85.15,85.131,11.74660229]
[1772413253550,0.1,85.15,85.13,7.57331383]
[1772413254542,0.1,85.15,85.131,11.74660229]
[1772413254758,0.1,85.15,85.13,7.57331383]
[1772413256142,2.30297291,85.149,85.12,7.57331383]
[1772413256748,2.30297291,85.149,85.073,5.36086188]
[1772413256749,2.30297291,85.137,85.1,7.57331383]
[1772413257550,2.30297291,85.137,85.11,7.57331383]
[1772413257750,2.30297291,85.137,85.1,7.57331383]
[1772413258059,2.30297291,85.137,85.11,7.57331383]
[1772413260033,2.30297291,85.137,85.111,11.74936259]
[1772413260951,2.30297291,85.136,85.111,11.74936259]
[1772413261145,2.30297291,85.149,85.12,7.57331383]
[1772413261861,11.74431874,85.148,85.111,11.74936259]
[1772413262064,2.30297291,85.147,85.11,7.57331383]
[1772413263188,2.30297291,85.176,85.122,0.03690672]
[1772413263460,6.13509422,85.217,85.187,5.8705786]
[1772413263640,41.06583439,85.229,85.19,7.57331383]
[1772413264966,7.57331383,85.22,85.19,7.57331383]
[1772413265159,41.06583439,85.229,85.19,7.57331383]
[1772413265363,2.15190698,85.228,85.19,7.57331383]
[1772413265666,2.15190698,85.219,85.19,7.57331383]
[1772413265853,2.15190698,85.199,85.163,2.13913387]
[1772413266059,2.15190698,85.199,85.17,7.57331383]
[1772413266943,2.15190698,85.197,85.17,7.57331383]
[1772413267270,2.15190698,85.197,85.145,29.36136806]
[1772413267271,2.15190698,85.189,85.16,7.57331383]
[1772413267458,13.8892717,85.198,85.17,7.57331383]
[1772413269346,9.72522081,85.23,85.191,2.13913387]
[1772413269551,2.15190698,85.23,85.201,2.13913387]
[1772413269952,2.15190698,85.228,85.172,2.13913387]
[1772413270166,2.15190698,85.228,85.19,7.57331383]
[1772413270559,2.15190698,85.228,85.19,9.7124477]
[1772413271070,13.88527786,85.227,85.191,11.73832916]
[1772413271267,2.15190698,85.226,85.191,11.73832916]
[1772413271666,1e-08,85.231,85.21,7.57331383]
[1772413271875,11.72932761,85.257,85.221,2.13913387]
[1772413272164,11.72932761,85.257,85.23,7.57331383]
[1772413272471,2.15190698,85.289,85.241,2.13913387]
[1772413272782,2.15190698,85.289,85.191,99.7757979]
[1772413272783,19.29255115,85.33,85.281,2.13913387]
[1772413273089,19.29255115,85.33,85.248,3.69383402]
[1772413273090,11.72126824,85.315,85.271,2.13913387]
[1772413273281,8.42358959,85.35,85.271,2.13913387]
[1772413273282,7.57331383,85.32,85.281,2.13913387]
[1772413273451,7.57331383,85.31,85.277,2.13913387]
[1772413274175,7.57331383,85.3,85.27,7.57331383]
[1772413274471,2.31074596,85.279,85.24,7.57331383]
[1772413274656,2.31074596,85.279,85.2,7.57331383]
[1772413274657,2.31074596,85.269,85.19,29.34598007]
[1772413274853,2.31074596,85.239,85.21,7.57331383]
[1772413275074,2.31074596,85.239,85.22,7.57331383]
[1772413275257,2.31074596,85.239,85.191,41.36847521]
[1772413275258,2.31074596,85.247,85.21,7.57331383]
[1772413276276,11.73048048,85.248,85.18,40.61876441]
[1772413276277,2.31074596,85.229,85.182,2.26550199]
[1772413276573,7.57331383,85.22,85.19,9.83881582]
[1772413276873,7.57331383,85.22,85.18,50.45835089]
[1772413276874,2.31074596,85.218,85.18,50.45835089]
[1772413277076,11.73447235,85.219,85.191,2.26034093]
[1772413277378,41.07065324,85.219,85.19,7.57331383]
[1772413278156,2.20120065,85.218,85.18,40.61876441]
[1772413278378,41.07065324,85.219,85.151,2.26034093]
[1772413278379,2.20120065,85.189,85.151,2.26034093]
[1772413278881,11.73874254,85.188,85.151,2.26034093]
[1772413279077,11.73874254,85.188,85.16,7.57331383]
[1772413279264,11.73874254,85.188,85.152,11.74370537]
[1772413279661,11.73799954,85.194,85.161,2.26034093]
[1772413279959,11.73799954,85.194,85.17,7.57331383]
[1772413280284,29.33586853,85.22,85.17,7.57331383]
[1772413280470,29.33586853,85.22,85.2,7.57331383]
[1772413280471,11.73433466,85.22,85.2,7.57331383]
[1772413281059,11.73309554,85.229,85.2,7.57331383]
[1772413281461,13.93429619,85.229,85.19,2.26034093]
[1772413281662,2.20120065,85.228,85.19,9.83365476]
[1772413281868,7.57331383,85.22,85.19,7.57331383]
[1772413282171,2.20120065,85.219,85.19,7.57331383]
[1772413283370,2.20120065,85.247,85.211,2.26034093]
[1772413283681,2.20120065,85.268,85.24,7.57331383]
[1772413283878,2.20120065,85.278,85.25,7.57331383]
[1772413284080,11.72682423,85.275,85.231,2.26034093]
[1772413284266,2.20120065,85.259,85.23,7.57331383]
[1772413284478,2.20120065,85.273,85.24,7.57331383]
[1772413284676,2.20120065,85.273,85.25,7.57331383]
[1772413284873,11.72599067,85.281,85.251,2.26034093]
[1772413285072,11.72599067,85.281,85.26,7.57331383]
[1772413285273,7.57331383,85.3,85.27,19.30068357]
[1772413285477,11.72264228,85.305,85.28,7.57331383]
[1772413285897,2.20120065,85.299,85.26,7.57331383]
[1772413286191,2.20120065,85.289,85.261,11.72869189]
[1772413286379,2.20120065,85.289,85.26,7.57331383]
[1772413286785,2.20120065,85.289,85.25,7.57331383]
[1772413286989,2.20120065,85.289,85.26,7.57331383]
[1772413287490,2.20120065,85.289,85.27,7.57331383]
[1772413287696,7.57331383,85.32,85.241,2.54466407]
[1772413287697,2.20120065,85.279,85.241,2.54466407]
[1772413287890,46.80721105,85.457,85.24,7.57331383]
[1772413287891,2.20120065,85.322,85.271,2.26034093]
[1772413288115,2.20120065,85.322,85.29,7.57331383]
[1772413288285,2.20120065,85.322,85.24,7.57331383]
[1772413288286,2.20120065,85.314,85.28,7.57331383]
[1772413288590,11.72126824,85.315,85.23,7.57331383]
[1772413288591,2.20120065,85.287,85.23,7.57331383]
[1772413288798,3.69383402,85.312,85.218,13.99493662]
[1772413288799,2.20120065,85.259,85.218,13.99493662]
[1772413289092,2.20120065,85.259,85.23,7.57331383]
[1772413289293,2.20120065,85.249,85.22,7.57331383]
[1772413289468,2.20120065,85.247,85.21,7.57331383]
[1772413289669,7.57331383,85.28,85.22,9.83365476]
[1772413289670,2.20120065,85.255,85.22,9.83365476]
[1772413289868,2.20120065,85.249,85.211,11.73557404]
[1772413290070,2.20120065,85.26,85.23,7.57331383]
[1772413290591,21.50345791,85.26,85.23,7.57331383]
[1772413290787,2.20120065,85.259,85.221,2.26034093]
[1772413291087,2.20120065,85.258,85.221,2.26034093]
[1772413291472,13.93044282,85.257,85.221,2.26034093]
[1772413291666,2.20120065,85.256,85.221,2.26034093]
[1772413291877,7.57331383,85.27,85.24,7.57331383]
[1772413292078,13.92835909,85.273,85.24,7.57331383]
[1772413292501,7.57331383,85.28,85.25,7.57331383]
[1772413292698,65.98634762,85.314,85.27,7.57331383]
[1772413292699,13.9254922,85.293,85.27,7.57331383]
[1772413292903,13.9254922,85.293,85.26,7.57331383]
[1772413294302,2.20120065,85.292,85.26,7.57331383]
[1772413294512,2.20120065,85.279,85.24,7.57331383]
[1772413294679,2.20120065,85.298,85.27,7.57331383]
[1772413295006,11.72346686,85.299,85.233,41.06390716]
[1772413295007,2.20120065,85.289,85.25,7.57331383]
[1772413295182,2.20120065,85.259,85.22,7.57331383]
[1772413295383,2.20120065,85.259,85.201,11.73695144]
[1772413295384,7.57331383,85.26,85.23,9.83365476]
[1772413295615,7.57331383,85.26,85.231,2.26034093]
[1772413295804,7.57331383,85.26,85.23,7.57331383]
[1772413295991,7.57331383,85.27,85.23,7.57331383]
[1772413296299,7.57331383,85.26,85.221,13.9944911]
[1772413296503,7.57331383,85.27,85.24,9.83365476]
[1772413296800,7.57331383,85.27,85.24,2.26034093]
[1772413297095,7.57331383,85.27,85.23,7.57331383]
[1772413297299,9.77451448,85.28,85.241,2.26034093]
[1772413297805,2.20120065,85.269,85.24,7.57331383]
[1772413298998,2.20120065,85.289,85.25,7.57331383]
[1772413299201,2.20120065,85.28,85.25,9.83365476]
[1772413299403,2.20120065,85.28,85.251,2.26034093]
[1772413299607,7.57331383,85.29,85.251,2.26034093]
[1772413299807,9.77451448,85.28,85.251,2.26034093]
[1772413300911,2.20120065,85.278,85.25,7.57331383]
[1772413301927,11.7262163,85.279,85.217,58.67354063]
[1772413301928,2.20120065,85.259,85.218,2.26034093]
[1772413302100,41.04175705,85.279,85.25,7.57331383]
[1772413302101,11.7262163,85.279,85.25,7.57331383]
[1772413302415,11.7262163,85.279,85.251,2.26034093]
[1772413302990,11.7262163,85.279,85.252,11.72993008]
[1772413303912,11.7262163,85.279,85.251,2.26034093]
[1772413304116,2.20120065,85.278,85.242,11.73127127]
[1772413304318,2.20120065,85.269,85.236,2.26034093]
[1772413304519,7.57331383,85.25,85.221,2.26034093]
[1772413305019,41.04175705,85.279,85.214,11.73503351]
[1772413305020,2.20120065,85.239,85.214,11.73503351]
[1772413305198,2.20120065,85.249,85.22,7.57331383]
[1772413305398,13.93154352,85.249,85.211,2.26034093]
[1772413305809,11.72963215,85.255,85.221,2.26034093]
[1772413306227,2.20120065,85.254,85.221,2.26034093]
[1772413306513,2.20120065,85.265,85.231,2.26034093]
[1772413306719,11.72690386,85.274,85.24,9.83365476]
[1772413306900,11.72690386,85.274,85.241,2.26034093]
[1772413307105,2.24493903,85.273,85.241,2.26034093]
[1772413307449,11.7262163,85.279,85.2,7.57331383]
[1772413307450,11.7262163,85.279,85.25,9.88907321]
[1772413308030,2.24493903,85.278,85.242,11.73130616]
[1772413308210,2.24493903,85.278,85.25,7.57331383]
[1772413309005,29.31015959,85.295,85.261,2.31575938]
[1772413309006,2.24493903,85.295,85.261,2.31575938]
[1772413309230,2.24493903,85.295,85.262,11.72855433]
[1772413309421,2.24493903,85.295,85.262,14.04431371]
[1772413310226,11.7241541,85.294,85.262,2.31575938]
[1772413310410,7.57331383,85.28,85.246,2.31575938]
[1772413310616,7.57331383,85.28,85.24,7.54913318]
[1772413310617,2.24493903,85.279,85.24,7.54913318]
[1772413310813,2.24493903,85.279,85.236,11.73213196]
[1772413311021,2.24493903,85.279,85.24,7.54913318]
[1772413311521,2.24493903,85.269,85.235,2.31575938]
[1772413311720,2.24493903,85.269,85.24,7.54913318]
[1772413312029,2.24493903,85.292,85.261,2.31575938]
[1772413312199,2.24493903,85.292,85.27,7.54913318]
[1772413313004,7.37766661,85.31,85.28,7.54913318]
[1772413313200,11.72209262,85.309,85.28,7.54913318]
[1772413313418,7.37766661,85.31,85.29,7.54913318]
[1772413313625,11.72150156,85.314,85.29,7.54913318]
[1772413314229,7.54913318,85.34,85.271,41.04560752]
[1772413314230,2.24493903,85.333,85.301,2.31575938]
[1772413314405,2.24493903,85.344,85.32,7.54913318]
[1772413314609,2.24493903,85.344,85.321,11.72044397]
[1772413314805,0.1,85.35,85.298,2.31575938]
[1772413314806,2.24493903,85.342,85.298,2.31575938]
[1772413315012,2.24493903,85.342,85.31,9.86489256]
[1772413315327,2.24493903,85.342,85.291,2.31575938]
[1772413315628,2.24493903,85.342,85.281,41.04079453]
[1772413315629,2.24493903,85.329,85.29,7.54913318]
[1772413315814,2.24493903,85.339,85.301,2.31575938]
[1772413316737,2.24493903,85.337,85.301,2.31575938]
[1772413316905,2.24493903,85.337,85.302,11.72305455]
[1772413317111,2.24493903,85.337,85.31,7.54913318]
[1772413317532,2.24493903,85.337,85.302,11.72305455]
[1772413317733,2.24493903,85.337,85.3,19.27238675]
[1772413317948,2.24493903,85.337,85.3,7.54913318]
[1772413318114,2.24493903,85.337,85.301,11.72319199]
[1772413319238,2.24493903,85.335,85.301,11.72319199]
[1772413319839,2.24493903,85.335,85.31,7.54913318]
[1772413320041,13.96153793,85.349,85.32,7.54913318]
[1772413320252,0.1,85.35,85.33,7.54913318]
[1772413320615,0.1,85.35,85.321,2.31575938]
[1772413320914,11.7165989,85.349,85.321,2.31575938]
[1772413321144,11.7165989,85.349,85.28,7.54913318]
[1772413321145,2.24493903,85.329,85.28,7.54913318]
[1772413321332,0.1,85.35,85.258,3.69383402]
[1772413321333,2.24493903,85.289,85.258,3.69383402]
[1772413321530,2.24493903,85.289,85.25,11.73010353]
[1772413321724,0.28432314,85.319,85.25,14.04586291]
[1772413321913,7.54913318,85.28,85.25,14.04586291]
[1772413322116,7.54913318,85.29,85.25,14.04586291]
[1772413322319,7.54913318,85.31,85.271,2.31575938]
[1772413322539,7.54913318,85.31,85.27,7.54913318]
[1772413322844,7.54913318,85.32,85.281,2.31575938]
[1772413323231,41.02251549,85.319,85.272,2.31575938]
[1772413323536,7.54913318,85.31,85.272,2.31575938]
[1772413323917,9.79407221,85.31,85.272,2.31575938]
[1772413324427,13.96565774,85.319,85.281,2.31575938]
[1772413324738,2.24493903,85.318,85.28,7.54913318]
[1772413325037,2.24493903,85.309,85.27,14.04321334]
[1772413325237,11.72145847,85.314,85.281,2.31575938]
[1772413326624,13.9663975,85.314,85.281,2.31575938]
[1772413327331,7.54913318,85.31,85.271,2.31575938]
[1772413327840,9.79407221,85.31,85.271,2.31575938]
[1772413328028,2.24493903,85.31,85.275,11.72674638]
[1772413328617,7.54913318,85.31,85.274,2.31575938]
[1772413328837,2.24493903,85.309,85.274,2.31575938]
[1772413329240,2.24493903,85.309,85.156,12.53529208]
[1772413329241,2.52926217,85.35,85.292,2.31575938]
[1772413329423,2.24493903,85.339,85.292,2.31575938]
[1772413329629,7.54913318,85.33,85.292,2.31575938]
[1772413329946,2.24493903,85.329,85.285,11.72527707]
[1772413330127,7.54913318,85.34,85.301,2.31575938]
[1772413330321,7.54913318,85.32,85.28,7.54913318]
[1772413330532,2.24493903,85.319,85.281,2.31575938]
[1772413331439,7.54913318,85.33,85.246,58.65372594]
[1772413331440,2.24493903,85.317,85.271,11.72731643]
[1772413331631,2.24493903,85.317,85.272,2.31575938]
[1772413331828,7.54913318,85.3,85.262,2.31575938]
[1772413332028,2.24493903,85.299,85.262,2.31575938]
[1772413332647,7.54913318,85.3,85.262,2.32185356]
[1772413333023,2.1865644,85.299,85.262,2.32185356]
[1772413333444,2.1865644,85.279,85.231,11.73282021]
[1772413333738,7.54913318,85.27,85.232,2.32185356]
[1772413333921,2.1865644,85.269,85.232,2.32185356]
[1772413334340,9.73569758,85.29,85.25,9.87098674]
[1772413334544,2.1865644,85.289,85.25,9.87098674]
[1772413334723,2.1865644,85.289,85.251,2.32185356]
[1772413335422,11.72497889,85.288,85.251,2.32185356]
[1772413336041,3.69383402,85.318,85.193,5.36086188]
[1772413336042,2.1865644,85.318,85.271,2.32185356]
[1772413336348,2.1865644,85.318,85.28,7.54913318]
[1772413336639,11.72071871,85.319,85.291,2.32185356]
[1772413337150,2.176354,85.329,85.291,2.32185356]
[1772413337348,13.89569912,85.329,85.291,2.32185356]
[1772413337649,13.89569912,85.329,85.292,13.90611775]
[1772413338349,2.176354,85.328,85.292,13.90611775]
[1772413338646,2.176354,85.326,85.293,2.18168873]
[1772413338850,11.71822818,85.338,85.301,2.18168873]
[1772413339036,41.01350109,85.338,85.301,2.18168873]
[1772413339236,41.01350109,85.338,85.292,11.72442902]
[1772413339237,9.72548718,85.33,85.293,2.18168873]
[1772413339744,2.176354,85.33,85.293,2.18168873]
[1772413340249,9.72548718,85.33,85.293,2.18168873]
[1772413340448,9.72548718,85.33,85.292,11.72442902]
[1772413340449,11.71750425,85.343,85.301,2.18168873]
[1772413340628,11.71642856,85.351,85.32,7.54913318]
[1772413340824,7.54913318,85.35,85.313,2.18168873]
[1772413341029,13.892658,85.352,85.321,2.18168873]
[1772413341531,2.176354,85.352,85.321,2.18168873]
[1772413341855,11.71632435,85.351,85.321,2.18168873]
[1772413342150,2.176354,85.367,85.321,2.18168873]
[1772413342350,7.54913318,85.39,85.351,2.18168873]
[1772413342661,2.176354,85.427,85.388,6.11865563]
[1772413342832,6.11878775,85.444,85.388,6.11865563]
[1772413342833,2.176354,85.443,85.4,7.54913318]
[1772413343030,7.40598123,85.46,85.41,7.54913318]
[1772413343031,2.176354,85.442,85.41,7.54913318]
[1772413343247,2.176354,85.439,85.399,2.18168873]
[1772413343449,7.40598123,85.46,85.421,2.18168873]
[1772413343635,2.176354,85.449,85.401,2.18168873]
[1772413343944,3.69383402,85.478,85.402,2.18168873]
[1772413344151,7.40570868,85.524,85.471,2.18168873]
[1772413344368,2.176354,85.499,85.46,7.54913318]
[1772413344540,7.54913318,85.48,85.451,11.70261319]
[1772413344736,9.72548718,85.49,85.45,9.73082191]
[1772413344938,2.176354,85.469,85.424,2.18168873]
[1772413345139,2.176354,85.449,85.401,2.18168873]
[1772413345353,7.54913318,85.44,85.401,2.18168873]
[1772413345547,2.176354,85.419,85.391,52.68575]
[1772413345742,2.176354,85.409,85.391,49.66024838]
[1772413345956,7.54913318,85.41,85.391,49.66024838]
[1772413346258,0.14216157,85.497,85.401,2.33841619]
[1772413346451,7.54913318,85.47,85.431,2.33841619]
[1772413346835,11.69877981,85.479,85.441,2.33841619]
[1772413347036,11.69741136,85.489,85.451,2.33841619]
[1772413347240,7.54913318,85.48,85.451,2.33841619]
[1772413347545,11.69741136,85.489,85.451,2.33841619]
[1772413347745,11.69741136,85.489,85.431,40.96867972]
[1772413347746,7.54913318,85.51,85.471,2.33841619]
[1772413347947,7.54913318,85.51,85.47,7.54913318]
[1772413348147,7.54913318,85.5,85.461,2.33841619]
[1772413348346,7.54913318,85.48,85.445,2.33841619]
[1772413348862,11.69787365,85.486,85.447,2.33841619]
[1772413349044,7.54913318,85.48,85.44,7.54913318]
[1772413349244,7.54913318,85.52,85.461,2.33841619]
[1772413349245,11.69604322,85.499,85.461,2.33841619]
[1772413349443,7.54913318,85.49,85.461,2.33841619]
[1772413349763,7.54913318,85.48,85.44,7.54913318]
[1772413349937,7.54913318,85.46,85.422,2.33841619]
[1772413350137,7.54913318,85.45,85.41,9.88754937]
[1772413350354,7.54913318,85.45,85.411,2.33841619]
[1772413350941,11.7028871,85.449,85.411,2.33841619]
[1772413351639,11.7028871,85.449,85.412,11.70795672]
[1772413351844,11.70208046,85.455,85.42,7.54913318]
[1772413352058,7.54913318,85.45,85.413,2.33841619]
[1772413352357,7.54913318,85.45,85.412,14.04637291]
[1772413352537,7.54913318,85.46,85.413,2.33841619]
[1772413352741,7.54913318,85.45,85.413,2.33841619]
[1772413352941,7.54913318,85.42,85.38,9.88754937]
[1772413353151,7.54913318,85.42,85.38,2.33841619]
[1772413353357,7.54913318,85.42,85.38,9.88754937]
[1772413353653,7.54913318,85.42,85.38,2.33841619]
[1772413353842,7.54913318,85.42,85.387,11.71134042]
[1772413354041,7.54913318,85.42,85.38,9.88754937]
[1772413354244,7.54913318,85.41,85.37,7.54913318]
[1772413354765,7.54913318,85.41,85.371,2.33841619]
[1772413354966,11.70836797,85.409,85.371,2.33841619]
[1772413355158,0.28432314,85.439,85.381,2.33841619]
[1772413355159,11.70755705,85.415,85.381,2.33841619]
[1772413356252,11.70755705,85.415,85.357,29.28850712]
[1772413356253,2.176354,85.399,85.345,29.2927536]
[1772413356462,9.72548718,85.39,85.35,7.54913318]
[1772413356843,7.54913318,85.38,85.34,7.54913318]
[1772413357061,11.71248199,85.379,85.34,7.54913318]
[1772413357566,11.71248199,85.379,85.32,7.54913318]
[1772413357567,2.176354,85.369,85.32,7.54913318]
[1772413357954,2.176354,85.369,85.328,11.71940633]
[1772413358158,2.176354,85.369,85.321,11.72034702]
[1772413358359,7.54913318,85.36,85.322,2.18168873]
[1772413358555,9.72548718,85.36,85.322,2.18168873]
[1772413359068,9.72548718,85.36,85.321,7.42836854]
[1772413359069,11.7165989,85.349,85.321,7.42836854]
[1772413359268,2.176354,85.339,85.3,2.18168873]
[1772413359447,7.54913318,85.36,85.321,2.18168873]
[1772413359648,2.176354,85.363,85.321,2.18168873]
[1772413359945,2.176354,85.349,85.31,7.54913318]
[1772413360154,7.54913318,85.34,85.301,13.90488072]
[1772413360353,2.176354,85.349,85.301,13.90488072]
[1772413360555,11.71522627,85.359,85.321,2.18168873]
[1772413360851,58.5465963,85.403,85.32,7.54913318]
[1772413360852,2.176354,85.401,85.351,2.18168873]
[1772413361046,2.176354,85.414,85.38,7.54913318]
[1772413361246,11.70591163,85.427,85.39,7.54913318]
[1772413361563,2.176354,85.426,85.381,2.18168873]
[1772413361748,2.176354,85.419,85.38,7.54913318]
[1772413361948,2.176354,85.419,85.372,2.18168873]
[1772413362150,11.70591163,85.427,85.39,7.54913318]
[1772413362366,11.70591163,85.427,85.4,7.54913318]
[1772413362554,11.70521094,85.433,85.4,7.54913318]
[1772413362955,2.176354,85.419,85.38,7.54913318]
[1772413363172,11.70562689,85.429,85.383,2.18168873]
[1772413363471,11.70562689,85.429,85.39,7.54913318]
[1772413363670,2.176354,85.409,85.36,7.54913318]
[1772413363871,40.96969412,85.429,85.359,2.18168873]
[1772413363872,2.176354,85.399,85.359,2.18168873]
[1772413364073,7.54913318,85.39,85.35,9.73082191]
[1772413364458,7.54913318,85.37,85.336,2.18168873]
[1772413364666,7.54913318,85.36,85.325,11.71989452]
[1772413365063,7.54913318,85.35,85.312,2.18168873]
[1772413366068,7.54913318,85.34,85.312,2.18168873]
[1772413366576,7.54913318,85.33,85.291,11.72456648]
[1772413367168,7.54913318,85.33,85.29,7.54913318]
[1772413367169,2.21958619,85.319,85.274,2.17512223]
[1772413367359,7.54913318,85.31,85.274,2.17512223]
[1772413367560,7.54913318,85.31,85.13,12.33654137]
[1772413367561,2.21958619,85.299,85.26,7.54913318]
[1772413368055,2.21958619,85.313,85.27,7.54913318]
[1772413368256,7.54913318,85.29,85.25,9.72425541]
[1772413368474,7.54913318,85.31,85.27,7.54913318]
[1772413368670,9.76871937,85.31,85.27,7.54913318]
[1772413368864,7.54913318,85.31,85.271,2.17512223]
[1772413369268,99.61443353,85.329,85.25,7.54913318]
[1772413369269,2.21958619,85.299,85.25,7.54913318]
[1772413369461,7.54913318,85.29,85.25,7.54913318]
[1772413369777,41.02732418,85.309,85.211,2.17512223]
[1772413369778,2.21958619,85.259,85.211,2.17512223]
[1772413370079,7.54913318,85.23,85.211,2.17512223]
[1772413370382,7.54913318,85.23,85.2,0.2]
[1772413370383,7.54913318,85.23,85.202,2.17512223]
[1772413370688,7.55850475,85.23,85.202,2.17512223]
[1772413370858,7.55850475,85.22,85.2,0.2]
[1772413371058,7.55850475,85.21,85.177,2.17512223]
[1772413371261,7.55850475,85.22,85.18,7.55850475]
[1772413371468,7.55850475,85.22,85.181,2.17512223]
[1772413371677,7.55850475,85.22,85.19,7.55850475]
[1772413371882,7.55850475,85.21,85.181,2.17512223]
[1772413372181,2.21958619,85.228,85.181,2.17512223]
[1772413372361,7.55850475,85.22,85.181,2.17512223]
[1772413372782,7.55850475,85.21,85.181,2.17512223]
[1772413373382,34.53595874,85.246,85.191,2.17512223]
[1772413373565,7.55850475,85.24,85.203,2.17512223]
[1772413373763,75.59373937,85.246,85.21,7.55850475]
[1772413374062,34.53595874,85.246,85.231,2.17512223]
[1772413374256,34.53595874,85.246,85.2,7.55850475]
[1772413374257,11.72556364,85.284,85.241,2.17512223]
[1772413374473,11.72556364,85.284,85.25,7.55850475]
[1772413374676,11.72556364,85.284,85.241,2.17512223]
[1772413374677,7.55850475,85.28,85.241,2.17512223]
[1772413374891,11.72556364,85.284,85.25,7.55850475]
[1772413376105,2.21958619,85.279,85.24,7.55850475]
[1772413376281,20.72157524,85.307,85.26,7.55850475]
[1772413376282,2.21958619,85.294,85.26,7.55850475]
[1772413376598,20.72157524,85.307,85.262,2.17512223]
[1772413376899,20.72157524,85.307,85.25,7.55850475]
[1772413376900,2.21958619,85.289,85.25,7.55850475]
[1772413377483,2.21958619,85.288,85.251,11.73006768]
[1772413377690,2.21958619,85.289,85.26,7.55850475]
[1772413377909,2.21958619,85.289,85.251,11.73006768]
[1772413378091,2.21958619,85.289,85.26,7.55850475]
[1772413378489,2.21958619,85.289,85.25,7.55850475]